fUSD/lending_fUSD_20240708
["ID","MTS","AMOUNT","RATE_DAILY","PERIOD"]
[331496471,1720440402064,-500.0,0.00050136,120]
[331496472,1720440402126,-500.0,0.00050136,120]
[331496473,1720440402188,-500.0,0.00050136,120]
[331496474,1720440402251,-500.0,0.00050136,120]
[331496475,1720440402316,-720.18,0.00050136,120]
[331496476,1720440402382,-500.0,0.00050136,120]
[331496477,1720440402447,-500.0,0.00050136,120]
[331496478,1720440402510,-500.0,0.00050136,120]
[331496479,1720440402571,-500.0,0.00050136,120]
[331496480,1720440402631,-511.48,0.00050136,120]
[331496481,1720440402900,-500.0,0.00050136,120]
[331496482,1720440402964,-500.0,0.00050136,120]
[331496483,1720440403024,-633.87,0.00050136,120]
[331496484,1720440403084,-885.43,0.00050136,120]
[331496485,1720440403146,-500.0,0.00050136,120]
[331496486,1720440403208,-536.5,0.00050136,120]
[331496487,1720440403271,-500.0,0.00050136,120]
[331496488,1720440403331,-500.0,0.00050136,120]
[331496489,1720440403392,-500.0,0.00050136,120]
[331496490,1720440403452,-500.0,0.00050136,120]
[331496491,1720440403511,-500.0,0.00050136,120]
[331496492,1720440403570,-739.48,0.00050136,120]
[331496493,1720440403630,-500.0,0.00050136,120]
[331496494,1720440403688,-500.0,0.00050136,120]
[331496495,1720440403749,-556.22,0.00050136,120]
[331496496,1720440403809,-500.0,0.00050136,120]
[331496497,1720440403870,-500.0,0.00050136,120]
[331496498,1720440403930,-500.0,0.00050136,120]
[331496499,1720440403992,-658.89,0.00050136,120]
[331496500,1720440404058,-500.0,0.00050136,120]
[331496501,1720440404120,-500.0,0.00050136,120]
[331496502,1720440404180,-500.0,0.00050136,120]
[331496503,1720440404241,-331.5,0.00050136,120]
[331496504,1720440404300,-500.0,0.00050136,120]
[331496505,1720440404357,-500.0,0.00050136,120]
[331496506,1720440404413,-500.0,0.00050136,120]
[331496507,1720440404472,-1000.0,0.00050136,120]
[331496508,1720440404531,-1110.08,0.00050136,120]
[331496509,1720440404591,-287.57,0.00050136,120]
[331496510,1720440404652,-2819.9,0.00050136,120]
[331496511,1720440404712,-500.0,0.00050136,120]
[331496512,1720440404772,-735.58,0.00050136,120]
[331496513,1720440404834,-246.78987784,0.00050136,120]
[331496514,1720440404894,-500.0,0.00050136,120]
[331496515,1720440404957,-500.0,0.00050136,30]
[331496516,1720440405024,-500.0,0.00050136,120]
[331496517,1720440405092,-346.759542,0.00050136,120]
[331496518,1720440405158,-500.0,0.00050136,120]
[331496519,1720440405222,-508.6,0.00050136,120]
[331496520,1720440405285,-500.0,0.00050136,120]
[331496521,1720440405347,-761.41,0.00050136,120]
[331496522,1720440405412,-757.98,0.00050136,120]
[331496523,1720440405481,-500.0,0.00050136,120]
[331496524,1720440405544,-500.0,0.00050136,120]
[331496525,1720440405607,-500.0,0.00050136,120]
[331496526,1720440405671,-744.56,0.00050136,120]
[331496527,1720440405731,-500.0,0.00050136,120]
[331496528,1720440405791,-571.86,0.00050136,120]
[331496529,1720440405851,-820.08,0.00050136,120]
[331496530,1720440405910,-976.88,0.00050136,120]
[331496531,1720440405972,-795.49,0.00050136,120]
[331496532,1720440406033,-633.46,0.00050136,120]
[331496533,1720440406094,-1023.57,0.00050136,120]
[331496534,1720440406157,-2509.7,0.00050136,120]
[331496535,1720440406222,-500.0,0.00050136,120]
[331496536,1720440406288,-500.0,0.00050136,120]
[331496537,1720440406354,-500.0,0.00050136,120]
[331496538,1720440406418,-500.0,0.00050136,120]
[331496539,1720440406488,-511.04988539,0.00050136,120]
[331496540,1720440406549,-732.16,0.00050136,120]
[331496541,1720440406608,-500.0,0.00050136,120]
[331496542,1720440406665,-500.0,0.00050136,120]
[331496543,1720440406726,-500.0,0.00050136,120]
[331496544,1720440406783,-500.0,0.00050136,120]
[331496545,1720440406839,-596.04,0.00050136,120]
[331496546,1720440406896,-584.19,0.00050136,120]
[331496547,1720440406958,-500.0,0.00050136,120]
[331496548,1720440407021,-500.0,0.00050136,120]
[331496549,1720440407081,-1250.0,0.00050136,120]
[331496550,1720440407142,-500.0,0.00050136,120]
[331496551,1720440407202,-354.96,0.00050136,120]
[331496552,1720440407260,-500.0,0.00050136,120]
[331496553,1720440407320,-500.0,0.00050136,120]
[331496554,1720440407380,-1319.76,0.00050136,120]
[331496555,1720440407439,-500.0,0.00050136,120]
[331496556,1720440407498,-500.0,0.00050136,120]
[331496557,1720440407556,-500.0,0.00050136,120]
[331496558,1720440407615,-460.37763588,0.00050136,120]
[331496559,1720440407676,-500.0,0.00050136,120]
[331496560,1720440407737,-500.0,0.00050136,120]
[331496561,1720440407797,-254.45130994,0.00050136,120]
[331496562,1720440407857,-500.0,0.00050136,120]
[331496563,1720440407916,-500.0,0.00050136,120]
[331496564,1720440407981,-777.23,0.00050136,120]
[331496565,1720440408041,-500.0,0.00050136,120]
[331496566,1720440408102,-786.03,0.00050136,120]
[331496567,1720440408161,-500.0,0.00050136,120]
[331496568,1720440408222,-1320.46,0.00050136,120]
[331496569,1720440408282,-993.73,0.00050136,120]
[331496570,1720440408340,-857.25,0.00050136,120]
[331496571,1720440408399,-584.09548104,0.00050136,120]
[331496572,1720440408459,-841.19290645,0.00050192,60]
[331496573,1720440408520,-154.41416209,0.00050228,60]
[331496574,1720440408580,-679.25331282,0.00050231,60]
[331496575,1720440408639,-676.70274913,0.00050281,60]
[331496576,1720440408697,-151.14628751,0.00050318,60]
[331496577,1720440408755,-222.15961385,0.00050348,60]
[331496578,1720440408815,-159.4883944,0.00050392,60]
[331496579,1720440408877,-5732.02,0.0005041,120]
[331496580,1720440408943,-4518.2,0.0005041,120]
[331496581,1720440409006,-3467.68,0.0005041,120]
[331496582,1720440409074,-3285.94,0.0005041,120]
[331496583,1720440409137,-843.34,0.0005041,120]
[331496584,1720440409197,-500.0,0.0005041,120]
[331496585,1720440409449,-500.0,0.0005041,120]
[331496586,1720440409513,-579.73,0.0005041,120]
[331496587,1720440409578,-7921.19,0.0005041,120]
[331496588,1720440409640,-500.0,0.0005041,120]
[331496589,1720440409703,-2995.09,0.0005041,120]
[331496590,1720440409765,-521.56,0.0005041,120]
[331496591,1720440409827,-500.0,0.0005041,120]
[331496592,1720440409889,-4816.6,0.0005041,120]
[331496593,1720440409950,-500.0,0.0005041,120]
[331496594,1720440410016,-500.0,0.0005041,120]
[331496595,1720440410081,-500.0,0.0005041,120]
[331496596,1720440410147,-500.0,0.0005041,120]
[331496597,1720440410209,-500.0,0.0005041,120]
[331496598,1720440410270,-5616.29,0.0005041,120]
[331496599,1720440410330,-4754.74,0.0005041,120]
[331496600,1720440410391,-500.0,0.0005041,120]
[331496601,1720440410458,-500.0,0.0005041,120]
[331496602,1720440410524,-2818.99,0.0005041,120]
[331496603,1720440410592,-952.30664668,0.0005041,120]
[331496604,1720440411823,1014.32314146,0.00011199,2]
[331496605,1720440418502,-1087.0,0.00042426,30]
[331496606,1720440418560,-1087.0,0.00042863,30]
[331496607,1720440418620,-1087.0,0.00043301,30]
[331496608,1720440418679,-1087.0,0.00043738,30]
[331496609,1720440418740,-793.81918395,0.00043738,30]
[331496610,1720440418797,-1087.0,0.00044175,30]
[331496611,1720440418857,-1087.0,0.00044613,30]
[331496612,1720440418919,-1087.0,0.0004505,30]
[331496613,1720440418988,-631.99,0.00049315,120]
[331496614,1720440419050,-500.0,0.00049315,120]
[331496615,1720440419113,-500.0,0.00049315,120]
[331496616,1720440419173,-526.26,0.00049315,120]
[331496617,1720440419233,-500.0,0.00049315,120]
[331496618,1720440419293,-611.37864834,0.00049315,120]
[331496619,1720440419353,-500.0,0.00049315,120]
[331496620,1720440419411,-500.0,0.00049315,120]
[331496621,1720440419470,-500.0,0.00049315,120]
[331496622,1720440419528,-500.0,0.00049315,120]
[331496623,1720440419589,-619.05717804,0.00049315,120]
[331496624,1720440419649,-191.64359822,0.00049315,120]
[331496625,1720440419711,-301.18501142,0.00049315,120]
[331496626,1720440419771,-500.0,0.00049315,120]
[331496627,1720440419833,-500.0,0.00049315,120]
[331496628,1720440419893,-500.0,0.00049315,120]
[331496629,1720440419959,-546.71085883,0.00049315,120]
[331496630,1720440420022,-500.0,0.00049315,120]
[331496631,1720440420085,-503.51232183,0.00049315,120]
[331496632,1720440420148,-834.16,0.00049315,120]
[331496633,1720440420222,-504.42631699,0.00049315,120]
[331496634,1720440420285,-500.0,0.00049315,120]
[331496635,1720440420344,-500.0,0.00049315,120]
[331496636,1720440420407,-500.0,0.00049315,120]
[331496637,1720440420466,-710.28,0.00049315,120]
[331496638,1720440420524,-500.0,0.00049315,120]
[331496639,1720440420580,-500.0,0.00049315,120]
[331496640,1720440420639,-500.0,0.00049315,120]
[331496641,1720440420696,-500.0,0.00049315,120]
[331496642,1720440420753,-500.0,0.00049315,120]
[331496643,1720440420812,-500.0,0.00049315,120]
[331496644,1720440420869,-527.67720563,0.00049315,120]
[331496645,1720440420928,-500.0,0.00049315,120]
[331496646,1720440420989,-500.0,0.00049315,120]
[331496647,1720440421050,-500.0,0.00049315,120]
[331496648,1720440421114,-500.0,0.00049315,120]
[331496649,1720440421176,-500.0,0.00049315,30]
[331496650,1720440421242,-500.0,0.00049315,120]
[331496651,1720440421307,-509.75060663,0.00049315,120]
[331496652,1720440421372,-500.0,0.00049315,120]
[331496653,1720440421436,-492.39385908,0.00049315,120]
[331496654,1720440421499,-459.34888184,0.00049315,120]
[331496655,1720440421561,-498.34218285,0.00049315,120]
[331496656,1720440421623,-500.0,0.00049315,120]
[331496657,1720440421686,-500.0,0.00049315,120]
[331496658,1720440421749,-907.14,0.00049315,120]
[331496659,1720440422030,-265.59761729,0.00049315,120]
[331496660,1720440422097,-631.99,0.00049589,120]
[331496661,1720440422161,-500.0,0.00049589,120]
[331496662,1720440422226,-500.0,0.00049589,120]
[331496663,1720440422288,-526.26,0.00049589,120]
[331496664,1720440422351,-500.0,0.00049589,120]
[331496665,1720440422412,-500.0,0.00049589,120]
[331496666,1720440422476,-500.0,0.00049589,120]
[331496667,1720440422538,-456.6328371,0.00049589,120]
[331496668,1720440422602,-500.0,0.00049589,120]
[331496669,1720440422664,-834.16,0.00049589,120]
[331496670,1720440422726,-500.0,0.00049589,120]
[331496671,1720440422789,-500.0,0.00049589,120]
[331496672,1720440422852,-710.28,0.00049589,120]
[331496673,1720440422920,-273.47,0.00049589,120]
[331496674,1720440422988,-568.102976,0.00049589,120]
[331496675,1720440423055,-500.0,0.00049589,120]
[331496676,1720440423121,-500.0,0.00049589,120]
[331496677,1720440423188,-505.50040303,0.00049589,120]
[331496678,1720440423255,-509.43302655,0.00049589,120]
[331496679,1720440423319,-500.0,0.00049589,120]
[331496680,1720440423380,-500.0,0.00049589,120]
[331496681,1720440423441,-500.0,0.00049589,120]
[331496682,1720440423501,-500.0,0.00049589,120]
[331496683,1720440423561,-500.0,0.00049589,30]
[331496684,1720440423620,-500.0,0.00049589,120]
[331496685,1720440423679,-500.0,0.00049589,120]
[331496686,1720440423740,-500.0,0.00049589,120]
[331496687,1720440423800,-500.0,0.00049589,120]
[331496688,1720440423860,-907.14,0.00049589,120]
[331496689,1720440423922,-631.99,0.00049863,120]
[331496690,1720440423986,-500.0,0.00049863,120]
[331496691,1720440424047,-500.0,0.00049863,120]
[331496692,1720440424110,-526.26,0.00049863,120]
[331496693,1720440424171,-500.0,0.00049863,120]
[331496694,1720440424234,-500.0,0.00049863,120]
[331496695,1720440424296,-500.0,0.00049863,120]
[331496696,1720440424363,-500.0,0.00049863,120]
[331496697,1720440424426,-834.16,0.00049863,120]
[331496698,1720440424489,-506.53441919,0.00049863,120]
[331496699,1720440424549,-710.28,0.00049863,120]
[331496700,1720440424610,-500.0,0.00049863,120]
[331496701,1720440424669,-500.0,0.00049863,120]
[331496702,1720440424729,-500.0,0.00049863,120]
[331496703,1720440424797,-325.64908961,0.00049863,120]
[331496704,1720440424859,-500.0,0.00049863,120]
[331496705,1720440424925,-506.72607162,0.00049863,30]
[331496706,1720440424991,-500.0,0.00049863,120]
[331496707,1720440425055,-500.0,0.00049863,120]
[331496708,1720440425122,-530.92850067,0.00049863,120]
[331496709,1720440425185,-500.0,0.00049863,120]
[331496710,1720440425247,-907.14,0.00049863,120]
[331496711,1720440425309,-631.99,0.00050136,120]
[331496712,1720440425370,-500.0,0.00050136,120]
[331496713,1720440425429,-500.0,0.00050136,120]
[331496714,1720440425490,-526.26,0.00050136,120]
[331496715,1720440425552,-500.0,0.00050136,120]
[331496716,1720440425615,-500.0,0.00050136,120]
[331496717,1720440425675,-500.0,0.00050136,120]
[331496718,1720440425735,-500.0,0.00050136,120]
[331496719,1720440425794,-834.16,0.00050136,120]
[331496720,1720440425854,-710.28,0.00050136,120]
[331496721,1720440425917,-301.34197302,0.00050136,120]
[331496722,1720440425984,-500.0,0.00050136,120]
[331496723,1720440426047,-505.33524505,0.00050136,120]
[331496724,1720440426109,-500.0,0.00050136,120]
[331496725,1720440426171,-500.0,0.00050136,120]
[331496726,1720440426234,-500.0,0.00050136,120]
[331496727,1720440426295,-500.0,0.00050136,120]
[331496728,1720440426357,-907.14,0.00050136,120]
[331496729,1720440426423,-2658.20335332,0.0005041,120]
[331496730,1720440426485,-2101.17,0.0005041,120]
[331496731,1720440426545,-7384.37,0.0005041,120]
[331496732,1720440426606,-965.22,0.0005041,120]
[331496733,1720440426666,-500.0,0.0005041,120]
[331496734,1720440426724,-13611.45,0.0005041,120]
[331496735,1720440426782,-500.0,0.0005041,120]
[331496736,1720440426839,-547.56,0.0005041,120]
[331496737,1720440426899,-500.0,0.0005041,120]
[331496738,1720440426961,-583.78,0.0005041,120]
[331496739,1720440427026,-3854.26,0.0005041,120]
[331496740,1720440427091,-500.0,0.0005041,120]
[331496741,1720440427155,-10162.8,0.0005041,120]
[331496742,1720440427221,-500.0,0.0005041,120]
[331496743,1720440427286,-500.0,0.0005041,120]
[331496744,1720440427348,-938.43,0.0005041,120]
[331496745,1720440427407,-500.0,0.0005041,120]
[331496746,1720440427470,-1124.37,0.0005041,120]
[331496747,1720440427530,-4983.01,0.0005041,120]
[331496748,1720440427589,-500.0,0.0005041,120]
[331496749,1720440427648,-5118.07,0.0005041,120]
[331496750,1720440427707,-500.0,0.0005041,120]
[331496751,1720440427768,-2432.5,0.0005041,120]
[331496752,1720440427828,-500.0,0.0005041,120]
[331496753,1720440427885,-500.0,0.0005041,120]
[331496754,1720440427946,-500.0,0.0005041,120]
[331496755,1720440428011,-500.0,0.0005041,120]
[331496756,1720440428075,-2686.57,0.0005041,120]
[331496757,1720440428135,-5565.77,0.0005041,120]
[331496758,1720440428196,-524.96,0.0005041,120]
[331496759,1720440428256,-500.0,0.0005041,120]
[331496760,1720440428315,-500.0,0.0005041,120]
[331496761,1720440428375,-500.0,0.0005041,120]
[331496762,1720440428435,-500.0,0.0005041,120]
[331496763,1720440428680,-1454.12,0.0005041,120]
[331496764,1720440428767,-500.0,0.0005041,120]
[331496765,1720440428834,-5036.27,0.0005041,120]
[331496766,1720440428898,-2304.81,0.0005041,120]
[331496767,1720440428966,-1067.33,0.0005041,120]
[331496768,1720440429036,-500.0,0.0005041,120]
[331496769,1720440429101,-1767.38,0.0005041,120]
[331496770,1720440429167,-500.0,0.0005041,120]
[331496771,1720440429231,-5646.1,0.0005041,120]
[331496772,1720440429294,-4919.53,0.0005041,120]
[331496773,1720440429358,-500.0,0.0005041,120]
[331496774,1720440429421,-500.0,0.0005041,120]
[331496775,1720440429486,-500.0,0.0005041,120]
[331496776,1720440429551,-9047.3,0.0005041,120]
[331496777,1720440429616,-4701.07,0.0005041,120]
[331496778,1720440429681,-500.0,0.0005041,120]
[331496779,1720440429745,-1525.81,0.0005041,120]
[331496780,1720440429809,-1659.74,0.0005041,120]
[331496781,1720440429874,-458.08239553,0.0005041,120]
[331496782,1720440429944,-4421.49,0.0005041,120]
[331496783,1720440430007,-2133.05,0.0005041,120]
[331496784,1720440430078,-7680.57,0.0005041,120]
[331496785,1720440430145,-500.0,0.0005041,120]
[331496786,1720440430212,-1188.25,0.0005041,120]
[331496787,1720440430278,-3352.13,0.0005041,120]
[331496788,1720440430342,-1759.96,0.0005041,120]
[331496789,1720440430411,-3903.92,0.0005041,120]
[331496790,1720440430480,-191.26513361,0.0005041,120]
[331496791,1720440430552,-500.0,0.0005041,120]
[331496792,1720440430622,-208.62,0.0005041,120]
[331496793,1720440430690,-500.0,0.0005041,120]
[331496794,1720440430762,-1631.9,0.0005041,120]
[331496795,1720440430826,-5951.51,0.0005041,120]
[331496796,1720440430889,-3833.49,0.0005041,120]
[331496797,1720440430951,-5146.59,0.0005041,120]
[331496798,1720440431016,-2176.54,0.0005041,120]
[331496799,1720440431083,-6347.68,0.0005041,120]
[331496800,1720440431147,-1088.69,0.0005041,120]
[331496801,1720440431214,-500.0,0.0005041,120]
[331496802,1720440431282,-500.0,0.0005041,120]
[331496803,1720440431347,-23579.31,0.0005041,120]
[331496804,1720440431410,-500.0,0.0005041,120]
[331496805,1720440431479,-3966.4,0.0005041,120]
[331496806,1720440431545,-2068.28,0.0005041,120]
[331496807,1720440431611,-500.0,0.0005041,120]
[331496808,1720440431676,-2578.3,0.0005041,120]
[331496809,1720440431744,-3921.63,0.0005041,120]
[331496810,1720440431813,-58243.57,0.0005041,120]
[331496811,1720440431877,-508.44,0.0005041,120]
[331496812,1720440431941,-627.12,0.0005041,120]
[331496813,1720440432010,-500.0,0.0005041,120]
[331496814,1720440432077,-24232.54,0.0005041,120]
[331496815,1720440432143,-500.0,0.0005041,120]
[331496816,1720440432206,-500.0,0.0005041,120]
[331496817,1720440432269,-552.36,0.0005041,120]
[331496818,1720440432336,-500.0,0.0005041,120]
[331496819,1720440432398,-623.17,0.0005041,120]
[331496820,1720440432459,-500.0,0.0005041,120]
[331496821,1720440432521,-6752.46,0.0005041,120]
[331496822,1720440432583,-5320.57,0.0005041,120]
[331496823,1720440432659,-500.0,0.0005041,120]
[331496824,1720440432722,-500.0,0.0005041,120]
[331496825,1720440432784,-500.0,0.0005041,120]
[331496826,1720440432852,-695.92,0.0005041,120]
[331496827,1720440432921,-2080.87,0.0005041,120]
[331496828,1720440432990,-500.0,0.0005041,120]
[331496829,1720440433059,-6849.11,0.0005041,120]
[331496830,1720440433125,-600.96761287,0.0005041,120]
[331496831,1720440433194,-500.0,0.0005041,120]
[331496832,1720440433264,-1687.12,0.0005041,120]
[331496833,1720440433328,-1101.67,0.0005041,120]
[331496834,1720440433390,-741.08,0.0005041,120]
[331496835,1720440433454,-500.0,0.0005041,120]
[331496836,1720440433516,-500.0,0.0005041,120]
[331496837,1720440433582,-6100.12,0.0005041,120]
[331496838,1720440433647,-1353.36,0.0005041,120]
[331496839,1720440433712,-500.0,0.0005041,120]
[331496840,1720440433777,-500.0,0.0005041,120]
[331496841,1720440433842,-500.0,0.0005041,120]
[331496842,1720440433908,-6271.45,0.0005041,120]
[331496843,1720440433974,-2621.09,0.0005041,120]
[331496844,1720440434041,-2109.31,0.0005041,120]
[331496845,1720440434109,-500.0,0.0005041,120]
[331496846,1720440434176,-12321.64,0.0005041,120]
[331496847,1720440434243,-538.98,0.0005041,120]
[331496848,1720440434309,-500.0,0.0005041,120]
[331496849,1720440434374,-5668.6,0.0005041,120]
[331496850,1720440434436,-500.0,0.0005041,120]
[331496851,1720440434497,-500.0,0.0005041,120]
[331496852,1720440434559,-6141.18,0.0005041,120]
[331496853,1720440434620,-500.0,0.0005041,120]
[331496854,1720440434683,-500.0,0.0005041,120]
[331496855,1720440434744,-500.0,0.0005041,120]
[331496856,1720440434806,-500.0,0.0005041,120]
[331496857,1720440434870,-768.98,0.0005041,120]
[331496858,1720440434932,-1783.66,0.0005041,120]
[331496859,1720440434997,-500.0,0.0005041,120]
[331496860,1720440435061,-500.0,0.0005041,120]
[331496861,1720440435122,-500.0,0.0005041,120]
[331496862,1720440435184,-639.8,0.0005041,120]
[331496863,1720440435246,-1148.58,0.0005041,120]
[331496864,1720440435306,-500.0,0.0005041,120]
[331496865,1720440435367,-500.0,0.0005041,120]
[331496866,1720440435426,-1046.64,0.0005041,120]
[331496867,1720440435486,-500.0,0.0005041,120]
[331496868,1720440435751,-500.0,0.0005041,120]
[331496869,1720440435814,-500.0,0.0005041,120]
[331496870,1720440435876,-500.0,0.0005041,120]
[331496871,1720440435942,-2383.64,0.0005041,120]
[331496872,1720440436012,-1380.83,0.0005041,120]
[331496873,1720440436080,-2726.39,0.0005041,120]
[331496874,1720440436145,-1348.55,0.0005041,120]
[331496875,1720440436207,-646.48,0.0005041,120]
[331496876,1720440436272,-5858.28,0.0005041,120]
[331496877,1720440436336,-500.0,0.0005041,120]
[331496878,1720440436400,-500.0,0.0005041,120]
[331496879,1720440436464,-3087.04,0.0005041,120]
[331496880,1720440436528,-500.0,0.0005041,120]
[331496881,1720440436588,-500.0,0.0005041,120]
[331496882,1720440436652,-500.0,0.0005041,120]
[331496883,1720440436716,-768.16,0.0005041,120]
[331496884,1720440436776,-1098.42,0.0005041,120]
[331496885,1720440436836,-1151.32,0.0005041,120]
[331496886,1720440436895,-28264.79,0.0005041,120]
[331496887,1720440436957,-500.0,0.0005041,120]
[331496888,1720440437019,-3804.3,0.0005041,120]
[331496889,1720440437090,-1188.45,0.0005041,120]
[331496890,1720440437156,-500.0,0.0005041,120]
[331496891,1720440437222,-500.0,0.0005041,120]
[331496892,1720440437293,-634.13,0.0005041,120]
[331496893,1720440437360,-1074.63,0.0005041,120]
[331496894,1720440437424,-223.52,0.0005041,120]
[331496895,1720440437486,-500.0,0.0005041,120]
[331496896,1720440437549,-5641.11,0.0005041,120]
[331496897,1720440437613,-1971.31,0.0005041,120]
[331496898,1720440437678,-972.69,0.0005041,120]
[331496899,1720440437739,-500.0,0.0005041,120]
[331496900,1720440437802,-652.19,0.0005041,120]
[331496901,1720440437864,-500.0,0.0005041,120]
[331496902,1720440437925,-500.0,0.0005041,120]
[331496903,1720440437988,-500.0,0.0005041,120]
[331496904,1720440438050,-1216.89,0.0005041,120]
[331496905,1720440438110,-1765.23,0.0005041,120]
[331496906,1720440438173,-500.0,0.0005041,120]
[331496907,1720440438238,-500.0,0.0005041,120]
[331496908,1720440438300,-500.0,0.0005041,120]
[331496909,1720440438360,-500.0,0.0005041,120]
[331496910,1720440438421,-5055.86,0.0005041,120]
[331496911,1720440438483,-500.0,0.0005041,120]
[331496912,1720440438545,-711.2,0.0005041,120]
[331496913,1720440438608,-2570.12,0.0005041,120]
[331496914,1720440438671,-2420.66,0.0005041,120]
[331496915,1720440438736,-500.0,0.0005041,120]
[331496916,1720440438798,-2264.16,0.0005041,120]
[331496917,1720440438861,-672.24,0.0005041,120]
[331496918,1720440438927,-3711.44,0.0005041,120]
[331496919,1720440438992,-3195.91,0.0005041,120]
[331496920,1720440439059,-500.0,0.0005041,120]
[331496921,1720440439122,-500.0,0.0005041,120]
[331496922,1720440439184,-584.2017583,0.0005041,120]
[331496923,1720440439250,-500.0,0.0005041,120]
[331496924,1720440439312,-2590.75,0.0005041,120]
[331496925,1720440439374,-3178.37,0.0005041,120]
[331496926,1720440439436,-822.01,0.0005041,120]
[331496927,1720440439501,-500.0,0.0005041,120]
[331496928,1720440439560,-1501.03,0.0005041,120]
[331496929,1720440439619,-500.0,0.0005041,120]
[331496930,1720440439679,-4176.17,0.0005041,120]
[331496931,1720440439737,-4652.58,0.0005041,120]
[331496932,1720440439795,-500.0,0.0005041,120]
[331496933,1720440439853,-607.4,0.0005041,120]
[331496934,1720440439909,-1039.34,0.0005041,120]
[331496935,1720440439971,-500.0,0.0005041,120]
[331496936,1720440440034,-724.29,0.0005041,120]
[331496937,1720440440097,-517.37,0.0005041,120]
[331496938,1720440440159,-1620.57,0.0005041,120]
[331496939,1720440440220,-500.0,0.0005041,120]
[331496940,1720440440278,-1793.43,0.0005041,120]
[331496941,1720440440336,-12165.5,0.0005041,120]
[331496942,1720440440395,-976.96,0.0005041,120]
[331496943,1720440440455,-500.0,0.0005041,120]
[331496944,1720440440515,-2857.78,0.0005041,120]
[331496945,1720440440575,-935.81,0.0005041,120]
[331496946,1720440440635,-794.19,0.0005041,120]
[331496947,1720440440701,-1096.71,0.0005041,120]
[331496948,1720440440765,-812.1,0.0005041,120]
[331496949,1720440440826,-2680.32,0.0005041,120]
[331496950,1720440440887,-500.0,0.0005041,120]
[331496951,1720440440951,-1019.65,0.0005041,120]
[331496952,1720440441013,-1152.98,0.0005041,120]
[331496953,1720440441077,-500.0,0.0005041,120]
[331496954,1720440441142,-2326.97,0.0005041,120]
[331496955,1720440441206,-7204.83,0.0005041,120]
[331496956,1720440441269,-2038.8,0.0005041,120]
[331496957,1720440441329,-1237.99,0.0005041,120]
[331496958,1720440441388,-671.15,0.0005041,120]
[331496959,1720440441445,-500.0,0.0005041,120]
[331496960,1720440441506,-507.99,0.0005041,120]
[331496961,1720440441565,-500.0,0.0005041,120]
[331496962,1720440441625,-943.16,0.0005041,120]
[331496963,1720440441683,-5931.18,0.0005041,120]
[331496964,1720440441739,-4626.82,0.0005041,120]
[331496965,1720440441800,-2327.97,0.0005041,120]
[331496966,1720440441859,-789.69,0.0005041,120]
[331496967,1720440441916,-1802.66,0.0005041,120]
[331496968,1720440441977,-500.0,0.0005041,120]
[331496969,1720440442037,-2179.21,0.0005041,120]
[331496970,1720440442095,-500.0,0.0005041,120]